bitfinex/quotes_BTCUSD_20250917
["timestamp","ask_amount","ask_price","bid_price","bid_amount"]
[1758127415613,0.69946321,115650.0,115640.0,0.17605053]
[1758127416012,0.52652763,115650.0,115640.0,0.17605053]
[1758127416680,0.79760763,115650.0,115640.0,0.17605053]
[1758127420966,0.38604093,115650.0,115640.0,0.17605053]
[1758127421196,0.79760763,115650.0,115640.0,0.17605053]
[1758127421420,0.11496093,115650.0,115640.0,0.17605053]
[1758127421660,0.79748763,115650.0,115640.0,0.17605053]
[1758127423127,0.97042321,115650.0,115640.0,0.17605053]
[1758127423777,0.79748763,115650.0,115640.0,0.17605053]
[1758127424857,0.38592093,115650.0,115640.0,0.17605053]
[1758127425072,0.79748763,115650.0,115640.0,0.17605053]
[1758127425886,0.79736763,115650.0,115640.0,0.17605053]
[1758127426086,0.79736763,115650.0,115640.0,0.20086053]
[1758127426306,0.79736763,115650.0,115640.0,0.0031]
[1758127426307,1.46668958,115650.0,115640.0,0.0031]
[1758127427170,1.39030372,115650.0,115640.0,0.0031]
[1758127427526,1.11946372,115650.0,115640.0,0.0031]
[1758127427724,1.39026372,115650.0,115640.0,0.0031]
[1758127429533,0.08684093,115650.0,115640.0,0.19334558]
[1758127429738,0.08684093,115650.0,115640.0,0.20086053]
[1758127429739,0.76920763,115650.0,115640.0,0.20086053]
[1758127429913,0.77125763,115650.0,115640.0,0.20086053]
[1758127430119,0.79693763,115650.0,115640.0,0.17605053]
[1758127430328,0.38537093,115650.0,115640.0,0.17605053]
[1758127430529,0.79693763,115650.0,115640.0,0.19334558]
[1758127431050,0.79693763,115650.0,115640.0,0.17605053]
[1758127434103,0.96987321,115650.0,115640.0,0.17605053]
[1758127434276,0.79693763,115650.0,115640.0,0.17605053]
[1758127434491,0.96987321,115650.0,115640.0,0.17605053]
[1758127434656,0.79693763,115650.0,115640.0,0.17605053]
[1758127435075,0.79677763,115650.0,115640.0,0.17605053]
[1758127435278,0.38521093,115650.0,115640.0,0.20086053]
[1758127435479,0.79677763,115650.0,115640.0,0.20086053]
[1758127436302,0.77421763,115650.0,115640.0,0.20086053]
[1758127436713,0.36265093,115650.0,115640.0,0.20086053]
[1758127437116,0.77421763,115650.0,115640.0,0.20086053]
[1758127437895,0.90137936,115650.0,115640.0,0.20086053]
[1758127438021,0.75338378,115650.0,115640.0,0.20086053]
[1758127438646,0.72844378,115650.0,115640.0,0.20086053]
[1758127439061,0.72327378,115650.0,115640.0,0.17605053]
[1758127439254,0.72327378,115650.0,115640.0,0.19864053]
[1758127439743,0.72541378,115650.0,115640.0,0.19864053]
[1758127440120,0.89834936,115650.0,115640.0,0.19864053]
[1758127440286,0.72866378,115650.0,115640.0,0.19864053]
[1758127440916,0.90159936,115650.0,115640.0,0.0031]
[1758127441124,1.01180903,115650.0,115640.0,0.0031]
[1758127441320,1.01180903,115650.0,115640.0,0.17605053]
[1758127441728,0.74116903,115650.0,115640.0,0.17605053]
[1758127441947,0.83871345,115650.0,115640.0,0.17605053]
[1758127442100,0.75344378,115650.0,115640.0,0.17605053]
[1758127442301,0.65589936,115650.0,115640.0,0.17605053]
[1758127442546,0.92637936,115650.0,115640.0,0.17605053]
[1758127442725,0.65589936,115650.0,115640.0,0.17605053]
[1758127442936,0.92637936,115650.0,115640.0,0.17605053]
[1758127444353,1.01985936,115650.0,115640.0,0.17605053]
[1758127444840,1.01985936,115650.0,115640.0,0.17595053]
[1758127446152,0.74937936,115650.0,115640.0,0.17595053]
[1758127446458,1.01981936,115650.0,115640.0,0.17595053]
[1758127448394,1.10508903,115650.0,115640.0,0.17595053]
[1758127448585,0.83464903,115650.0,115640.0,0.17595053]
[1758127448893,1.10516903,115650.0,115640.0,0.17595053]
[1758127449033,0.83464903,115650.0,115640.0,0.17595053]
[1758127449249,1.10516903,115650.0,115640.0,0.17595053]
[1758127450451,1.01989936,115650.0,115640.0,0.17595053]
[1758127451016,0.74937936,115650.0,115640.0,0.17595053]
[1758127451239,1.01985936,115650.0,115640.0,0.17595053]
[1758127451873,1.01985936,115650.0,115640.0,0.17554599]
[1758127455290,0.57644378,115650.0,115640.0,0.17554599]
[1758127455471,0.84688378,115650.0,115640.0,0.17554599]
[1758127456959,0.57644378,115650.0,115640.0,0.17554599]
[1758127457135,0.84688378,115650.0,115640.0,0.17554599]
[1758127457368,0.55150378,115650.0,115640.0,0.17554599]
[1758127457502,0.81655378,115650.0,115640.0,0.19937599]
[1758127457926,0.81864378,115650.0,115640.0,0.19937599]
[1758127458387,0.84601378,115650.0,115640.0,0.19937599]
[1758127458735,0.84601378,115650.0,115640.0,0.17554599]
[1758127459551,1.01894936,115650.0,115640.0,0.00259546]
[1758127459711,1.47020567,115650.0,115640.0,0.00259546]
[1758127459939,1.89167805,115650.0,115640.0,0.00259546]
[1758127460130,1.5258852,115650.0,115640.0,0.00259546]
[1758127460544,1.49801293,115650.0,115640.0,0.00259546]
[1758127461524,1.47020567,115650.0,115640.0,0.00259546]
[1758127461729,1.83599852,115650.0,115640.0,0.00259546]
[1758127463421,1.47020567,115650.0,115640.0,0.00259546]
[1758127464298,1.83599852,115650.0,115640.0,0.00259546]
[1758127464504,1.85210746,115650.0,115640.0,0.00259546]
[1758127465690,0.17296549,115630.0,115620.0,0.18172913]
[1758127465913,0.83865834,115630.0,115620.0,0.18172913]
[1758127466088,0.66569285,115630.0,115620.0,0.18172913]
[1758127466288,0.2999,115630.0,115620.0,0.18172913]
[1758127466518,0.66579285,115630.0,115620.0,0.18172913]
[1758127467105,0.37305285,115630.0,115620.0,0.18372913]
[1758127467305,0.64349285,115630.0,115620.0,0.20755913]
[1758127467509,0.37305285,115630.0,115620.0,0.20755913]
[1758127468274,0.64349285,115630.0,115620.0,0.20755913]
[1758127469017,0.37305285,115630.0,115620.0,0.20755913]
[1758127469453,0.64349285,115630.0,115620.0,0.20755913]
[1758127470911,0.66779285,115630.0,115620.0,0.20755913]
[1758127474005,0.64349285,115630.0,115620.0,0.20755913]
[1758127474353,0.64349285,115630.0,115620.0,0.18372913]
[1758127474563,0.64353285,115630.0,115620.0,0.18372913]
[1758127475778,0.37305285,115630.0,115620.0,0.18372913]
[1758127476196,0.64349285,115630.0,115620.0,0.18372913]
[1758127476454,0.94201215,115630.0,115620.0,0.0021]
[1758127476874,0.67157215,115630.0,115620.0,0.17508045]
[1758127477085,0.94201215,115630.0,115620.0,0.17508045]
[1758127477275,0.68193892,115630.0,115620.0,0.17508045]
[1758127477461,0.95237892,115630.0,115620.0,0.17508045]
[1758127477622,0.50897343,115630.0,115620.0,0.17508045]
[1758127477838,0.95237892,115630.0,115620.0,0.17508045]
[1758127478024,0.95237892,115630.0,115620.0,0.19969045]
[1758127478025,0.47915343,115630.0,115620.0,0.19969045]
[1758127478235,0.72360252,115630.0,115620.0,0.19969045]
[1758127478704,0.89860801,115630.0,115620.0,0.19969045]
[1758127478838,0.90179801,115630.0,115620.0,0.19969045]
[1758127479060,0.72360252,115630.0,115620.0,0.19969045]
[1758127480281,0.72564252,115630.0,115620.0,0.19969045]
[1758127480511,0.72883252,115630.0,115620.0,0.19969045]
[1758127481577,0.45839252,115630.0,115620.0,0.19969045]
[1758127481729,0.72883252,115630.0,115620.0,0.19969045]
[1758127482545,0.45839252,115630.0,115620.0,0.19969045]
[1758127482769,0.72883252,115630.0,115620.0,0.19969045]
[1758127483219,0.45839252,115630.0,115620.0,0.19969045]
[1758127483511,0.72883252,115630.0,115620.0,0.19969045]
[1758127487860,0.75349252,115630.0,115620.0,0.19969045]
[1758127488289,1.01172768,115630.0,115620.0,0.0021]
[1758127488725,1.03771828,115630.0,115620.0,0.0021]
[1758127489494,1.37771828,115630.0,115620.0,0.0021]
[1758127491025,1.37771828,115630.0,115620.0,0.002]
[1758127491397,1.29244861,115630.0,115620.0,0.002]
[1758127492670,0.92665576,115630.0,115620.0,0.002]
[1758127493068,1.29244861,115630.0,115620.0,0.002]
[1758127496557,0.99734861,115630.0,115620.0,0.17498045]
[1758127496765,0.72380027,115630.0,115620.0,0.19981045]
[1758127497187,1.01300828,115630.0,115620.0,0.17498045]
[1758127497395,0.95130861,115630.0,115620.0,0.17498045]
[1758127497601,0.50790312,115630.0,115620.0,0.17498045]
[1758127497815,0.74959312,115630.0,115620.0,0.19981045]
[1758127498027,0.95130861,115630.0,115620.0,0.0021]
[1758127498229,1.29130861,115630.0,115620.0,0.0021]
[1758127498472,1.37657828,115630.0,115620.0,0.0021]
[1758127499738,1.37657828,115630.0,115620.0,0.002]
[1758127499952,1.83445319,115630.0,115620.0,0.002]
[1758127500385,1.74918352,115630.0,115620.0,0.002]
[1758127501035,1.76528568,115630.0,115620.0,0.002]
[1758127501466,1.74918352,115630.0,115620.0,0.002]
[1758127502704,1.79315237,115630.0,115620.0,0.002]
[1758127503147,1.82096031,115630.0,115620.0,0.002]
[1758127503330,1.90622998,115630.0,115620.0,0.002]
[1758127504019,0.51298045,115620.0,115610.0,0.22719793]
[1758127504229,1.69235788,115620.0,115610.0,0.22719793]
[1758127504436,1.72151788,115620.0,115610.0,0.22719793]
[1758127504915,2.23112185,115620.0,115610.0,0.22719793]
[1758127505156,1.7792319,115620.0,115610.0,0.22719793]
[1758127505376,1.5087919,115620.0,115610.0,0.22819793]
[1758127505589,1.7812319,115620.0,115610.0,0.22819793]
[1758127505793,1.5088919,115620.0,115610.0,0.22719793]
[1758127506000,1.7803319,115620.0,115610.0,0.22719793]
[1758127506567,1.76423831,115620.0,115610.0,0.22719793]
[1758127507224,1.76323831,115620.0,115610.0,0.22719793]
[1758127507396,1.77931691,115620.0,115610.0,0.22819793]
[1758127507600,1.78031691,115620.0,115610.0,0.22819793]
[1758127508818,1.78035691,115620.0,115610.0,0.22819793]
[1758127510626,1.80816485,115620.0,115610.0,0.22819793]
[1758127510850,1.78035691,115620.0,115610.0,0.22819793]
[1758127512072,1.80816485,115620.0,115610.0,0.22819793]
[1758127513647,1.83603712,115620.0,115610.0,0.22819793]
[1758127514226,2.247871,115620.0,115610.0,0.22819793]
[1758127514500,1.977391,115620.0,115610.0,0.22819793]
[1758127514796,1.56555712,115620.0,115610.0,0.22819793]
[1758127514997,1.78035691,115620.0,115610.0,0.22819793]
[1758127515213,1.50987691,115620.0,115610.0,0.22819793]
[1758127515397,1.78035691,115620.0,115610.0,0.22819793]
[1758127515858,2.22935691,115620.0,115610.0,0.22819793]
[1758127519032,1.95887691,115620.0,115610.0,0.22819793]
[1758127519254,2.22935691,115620.0,115610.0,0.22819793]
[1758127521432,1.95887691,115620.0,115610.0,0.22819793]
[1758127521737,1.40568915,115620.0,115610.0,0.22819793]
[1758127521945,2.22935691,115620.0,115610.0,0.22819793]
[1758127526455,2.25716485,115620.0,115610.0,0.22819793]
[1758127526665,2.28503712,115620.0,115610.0,0.22819793]
[1758127527279,2.69688581,115620.0,115610.0,0.22819793]
[1758127528206,2.28505193,115620.0,115610.0,0.22819793]
[1758127528631,2.69688581,115620.0,115610.0,0.22819793]
[1758127529203,2.79040581,115620.0,115610.0,0.22819793]
[1758127529920,2.35069966,115620.0,115610.0,0.22819793]
[1758127530915,1.5270319,115620.0,115610.0,0.22819793]
[1758127531123,2.32289172,115620.0,115610.0,0.22819793]
[1758127533422,1.56064758,115620.0,115610.0,0.22819793]
[1758127533641,1.56064758,115620.0,115610.0,0.25118793]
[1758127533846,1.55862758,115620.0,115610.0,0.25118793]
[1758127534023,2.20322758,115620.0,115610.0,0.25118793]
[1758127534238,1.93274758,115620.0,115610.0,0.25118793]
[1758127534443,1.20657937,115620.0,115610.0,0.42418334]
[1758127534647,1.7913937,115620.0,115610.0,0.42418334]
[1758127534854,2.20322758,115620.0,115610.0,0.42418334]
[1758127535307,2.17723129,115620.0,115610.0,0.42418334]
[1758127535539,1.76539741,115620.0,115610.0,0.42418334]
[1758127536299,2.17723129,115620.0,115610.0,0.25118793]
[1758127536502,1.89065788,115620.0,115610.0,0.25118793]
[1758127536699,2.16113788,115620.0,115610.0,0.25118793]
[1758127537312,2.16113788,115620.0,115610.0,0.42418334]
[1758127537758,1.33747012,115620.0,115610.0,0.25118793]
[1758127537923,2.16113788,115620.0,115610.0,0.42418334]
[1758127538987,1.749304,115620.0,115610.0,0.42418334]
[1758127539840,0.80048967,115620.0,115610.0,0.42418334]
[1758127539992,1.57632355,115620.0,115610.0,0.42418334]
[1758127540202,1.21232355,115620.0,115610.0,0.42418334]
[1758127540461,1.57632355,115620.0,115610.0,0.42418334]
[1758127540670,1.57628355,115620.0,115610.0,0.42418334]
[1758127541462,1.16444967,115620.0,115610.0,0.42418334]
[1758127541617,1.57628355,115620.0,115610.0,0.42418334]
[1758127542029,1.16444967,115620.0,115610.0,0.42418334]
[1758127542232,1.57628355,115620.0,115610.0,0.42418334]
[1758127544004,1.15101388,115620.0,115610.0,0.42418334]
[1758127544416,1.15101388,115620.0,115610.0,0.42428334]
[1758127544791,0.73918,115620.0,115610.0,0.42428334]
[1758127544968,1.15101388,115620.0,115610.0,0.42428334]
[1758127546610,1.23628355,115620.0,115610.0,0.42428334]
[1758127546824,1.85406582,115620.0,115610.0,0.22829793]
[1758127547040,1.90483809,115620.0,115610.0,0.22829793]
[1758127548253,1.87696582,115620.0,115610.0,0.22829793]
[1758127548443,1.85406582,115620.0,115610.0,0.22829793]
[1758127548649,2.30223549,115620.0,115610.0,0.22829793]
[1758127548866,2.27442755,115620.0,115610.0,0.22829793]
[1758127549622,2.00398755,115620.0,115610.0,0.22829793]
[1758127549890,2.16625788,115620.0,115610.0,0.22829793]
[1758127550102,2.16625788,115620.0,115610.0,0.25292793]
[1758127550473,2.18915788,115620.0,115610.0,0.25292793]
[1758127551081,2.18915788,115620.0,115610.0,0.22829793]
[1758127552198,1.36549012,115620.0,115610.0,0.22829793]
[1758127552427,2.18915788,115620.0,115610.0,0.22829793]
[1758127553208,2.27442755,115620.0,115610.0,0.22829793]
[1758127557385,2.18865788,115620.0,115610.0,0.22829793]
[1758127557830,2.18875788,115620.0,115610.0,0.22829793]
[1758127559738,1.73121227,115620.0,115610.0,0.22829793]
[1758127560150,1.73121227,115620.0,115610.0,0.22819793]
[1758127560992,1.75720782,115620.0,115610.0,0.22819793]
[1758127561185,1.84247749,115620.0,115610.0,0.22819793]
[1758127562129,1.85857972,115620.0,115610.0,0.22819793]
[1758127563068,1.49245757,115620.0,115610.0,0.22819793]
[1758127563291,1.85857972,115620.0,115610.0,0.22819793]
[1758127568484,2.28038208,115620.0,115610.0,0.22819793]
[1758127569121,2.00994208,115620.0,115610.0,0.22819793]
[1758127569333,2.28034208,115620.0,115610.0,0.22819793]
[1758127572341,2.00994208,115620.0,115610.0,0.22819793]
[1758127572558,2.28038208,115620.0,115610.0,0.22819793]
[1758127575017,2.00994208,115620.0,115610.0,0.22819793]
[1758127575330,2.28038208,115620.0,115610.0,0.22819793]
[1758127577464,2.00994208,115620.0,115610.0,0.22819793]
[1758127577729,2.28038208,115620.0,115610.0,0.22819793]
[1758127578591,2.00994208,115620.0,115610.0,0.22819793]
[1758127578802,2.28038208,115620.0,115610.0,0.22819793]
[1758127580062,1.91425993,115620.0,115610.0,0.22819793]
[1758127580318,1.91365993,115620.0,115610.0,0.22719793]
[1758127580718,1.91565993,115620.0,115610.0,0.22819793]
[1758127580884,1.91365993,115620.0,115610.0,0.22719793]
[1758127581361,1.91565993,115620.0,115610.0,0.22744929]
[1758127581532,1.64521993,115620.0,115610.0,0.22744929]
[1758127581732,1.61734766,115620.0,115610.0,0.22744929]
[1758127582039,1.58953972,115620.0,115610.0,0.22744929]
[1758127582249,1.85997972,115620.0,115610.0,0.22744929]
[1758127583201,1.58953972,115620.0,115610.0,0.22744929]
[1758127583419,1.85997972,115620.0,115610.0,0.22744929]
[1758127591278,2.26250977,115620.0,115610.0,0.22744929]
[1758127591727,1.89638762,115620.0,115610.0,0.22744929]
[1758127591948,0.51299541,115610.0,115600.0,1e-08]
[1758127592195,1.69150596,115610.0,115600.0,1e-08]
[1758127592419,1.71623596,115610.0,115600.0,1e-08]
[1758127593264,1.74090785,115610.0,115600.0,1e-08]
[1758127593689,1.74190785,115610.0,115600.0,1e-08]
[1758127596643,1.72580562,115610.0,115600.0,1e-08]
[1758127596849,1.74191286,115610.0,115600.0,1e-08]
[1758127597646,1.80674067,115610.0,115600.0,1e-08]
[1758127597852,1.53630067,115610.0,115600.0,1e-08]
[1758127597993,1.80674067,115610.0,115600.0,1e-08]
[1758127599678,1.53630067,115610.0,115600.0,1e-08]
[1758127600095,1.53530067,115610.0,115600.0,1e-08]
[1758127600318,1.80574067,115610.0,115600.0,1e-08]
[1758127600542,1.80774067,115610.0,115600.0,1e-08]
[1758127602553,1.88789257,115610.0,115600.0,1e-08]
[1758127602764,0.51301038,115600.0,115590.0,1e-08]
[1758127602971,1.7301492,115600.0,115590.0,1e-08]
[1758127603162,1.59719337,115600.0,115590.0,1e-08]
[1758127603390,1.86763337,115600.0,115590.0,1e-08]
[1758127603761,1.89374117,115600.0,115590.0,1e-08]
[1758127604143,1.89574117,115600.0,115590.0,1e-08]
[1758127604380,1.89374117,115600.0,115590.0,1e-08]
[1758127604589,1.62330117,115600.0,115590.0,1e-08]
[1758127604795,1.89574117,115600.0,115590.0,1e-08]
[1758127605925,1.62530117,115600.0,115590.0,1e-08]
[1758127606131,1.89574117,115600.0,115590.0,1e-08]
[1758127607759,1.89578117,115600.0,115590.0,1e-08]
[1758127607976,1.62530117,115600.0,115590.0,1e-08]
[1758127608246,0.51304031,115580.0,115570.0,0.17978978]
[1758127608448,1.36876347,115580.0,115570.0,0.17978978]
[1758127608625,1.47244347,115580.0,115570.0,0.17978978]
[1758127608875,1.74292347,115580.0,115570.0,0.17978978]
[1758127609087,1.76903129,115580.0,115570.0,0.17978978]
[1758127610165,1.77003129,115580.0,115570.0,0.17978978]
[1758127610796,1.49955129,115580.0,115570.0,0.17978978]
[1758127611020,1.77003129,115580.0,115570.0,0.17978978]
[1758127611223,1.49955129,115580.0,115570.0,0.17978978]
[1758127611475,1.77003129,115580.0,115570.0,0.17978978]
[1758127611912,1.49955129,115580.0,115570.0,0.17978978]
[1758127612118,1.77003129,115580.0,115570.0,0.17978978]
[1758127612501,1.56538285,115580.0,115570.0,0.17978978]
[1758127612704,1.83586285,115580.0,115570.0,0.17978978]
[1758127613635,1.56538285,115580.0,115570.0,0.17978978]
[1758127614098,1.83586285,115580.0,115570.0,0.17978978]
[1758127615627,1.82726289,115580.0,115570.0,0.17978978]
[1758127616140,1.1750366,115580.0,115570.0,0.17978978]
[1758127616389,1.82023871,115580.0,115570.0,0.17978978]
[1758127619897,1.86621973,115580.0,115570.0,0.17978978]
[1758127620861,1.89402767,115580.0,115570.0,0.17978978]
[1758127621275,1.62354767,115580.0,115570.0,0.17978978]
[1758127621611,1.97929734,115580.0,115570.0,0.17978978]
[1758127621627,1.56719417,115580.0,115570.0,0.17978978]
[1758127622078,1.97929734,115580.0,115570.0,0.17978978]
[1758127624606,1.70881734,115580.0,115570.0,0.17978978]
[1758127624806,1.6810094,115580.0,115570.0,0.17978978]
[1758127625218,1.9514894,115580.0,115570.0,0.17978978]
[1758127626763,1.6810094,115580.0,115570.0,0.17978978]
[1758127626965,1.9514894,115580.0,115570.0,0.17978978]
[1758127627989,1.9514882,115580.0,115570.0,0.17978978]
[1758127630268,1.80038697,115580.0,115570.0,0.35284507]
[1758127630692,1.52990697,115580.0,115570.0,0.35284507]
[1758127630902,1.78428093,115580.0,115570.0,0.35284507]
[1758127632187,1.78428093,115580.0,115570.0,0.17978978]
[1758127634746,1.77568097,115580.0,115570.0,0.17978978]
[1758127634991,1.86095064,115580.0,115570.0,0.17978978]
[1758127635377,1.88875858,115580.0,115570.0,0.17978978]
[1758127637029,1.88875858,115580.0,115570.0,0.15577978]
[1758127637213,1.66740473,115580.0,115570.0,0.15577978]
[1758127637355,1.90997246,115580.0,115570.0,0.18040978]
[1758127638669,1.93479246,115580.0,115570.0,0.15577978]
[1758127640515,1.99984487,115580.0,115570.0,0.15577978]
[1758127640946,2.41194804,115580.0,115570.0,0.15577978]
[1758127641243,2.43982031,115580.0,115570.0,0.15577978]
[1758127642149,2.43882031,115580.0,115570.0,0.15577978]
[1758127642353,2.44082031,115580.0,115570.0,0.15577978]
[1758127643448,2.41294804,115580.0,115570.0,0.15577978]
[1758127643693,2.00084487,115580.0,115570.0,0.15577978]
[1758127644237,2.41294804,115580.0,115570.0,0.15577978]
[1758127645038,1.70259693,115580.0,115570.0,0.15577978]
[1758127645425,1.94821693,115580.0,115570.0,0.15577978]
[1758127647873,1.98163689,115580.0,115570.0,0.15577978]
[1758127648836,1.71119689,115580.0,115570.0,0.15577978]
[1758127649041,1.95681689,115580.0,115570.0,0.15577978]
[1758127649460,1.95681689,115580.0,115570.0,0.18040978]
[1758127650575,1.98163689,115580.0,115570.0,0.15577978]
[1758127652213,2.13023689,115580.0,115570.0,0.15577978]
[1758127652417,2.40067689,115580.0,115570.0,0.18040978]
[1758127652774,2.13023689,115580.0,115570.0,0.18040978]
[1758127652975,2.40067689,115580.0,115570.0,0.18040978]
[1758127654598,1.56781164,115580.0,115570.0,0.18040978]
[1758127654793,2.25035481,115580.0,115570.0,0.18040978]
[1758127655027,1.97991481,115580.0,115570.0,0.18040978]
[1758127655239,2.23424093,115580.0,115570.0,0.18040978]
[1758127655423,1.9799084,115580.0,115570.0,0.18040978]
[1758127655626,2.3195106,115580.0,115570.0,0.18040978]
[1758127656513,2.0490706,115580.0,115570.0,0.18040978]
[1758127656735,2.3195106,115580.0,115570.0,0.18040978]
[1758127657141,2.33561798,115580.0,115570.0,0.18040978]
[1758127658305,2.06517798,115580.0,115570.0,0.18040978]
[1758127658511,2.33561798,115580.0,115570.0,0.18040978]
[1758127658761,2.33763798,115580.0,115570.0,0.15577978]
[1758127658903,2.34069798,115580.0,115570.0,0.17948978]
[1758127659257,2.33763798,115580.0,115570.0,0.17948978]
[1758127659516,2.33561798,115580.0,115570.0,0.17948978]
[1758127660698,2.39898223,115580.0,115570.0,0.17948978]
[1758127661541,2.39898223,115580.0,115570.0,0.15577978]
[1758127661542,2.42742223,115580.0,115570.0,0.15577978]
[1758127661763,2.41833334,115580.0,115570.0,1e-08]
[1758127661994,2.41833334,115580.0,115560.0,1.0]
[1758127661995,0.5687355,115570.0,115560.0,1.0]
[1758127662207,1.78038303,115570.0,115560.0,1.0]
[1758127662439,1.80882303,115570.0,115560.0,1.0]
[1758127662650,1.83493466,115570.0,115560.0,1.0]
[1758127662863,1.83489466,115570.0,115560.0,1.0]
[1758127663291,1.83536534,115570.0,115560.0,1.0]
[1758127663710,1.56696534,115570.0,115560.0,1.0]
[1758127663918,1.83740534,115570.0,115560.0,1.0]
[1758127665593,1.80953307,115570.0,115560.0,1.0]
[1758127666007,1.78172513,115570.0,115560.0,1.0]
[1758127666231,1.51128513,115570.0,115560.0,1.0]
[1758127666427,1.78172513,115570.0,115560.0,1.0]
[1758127668559,1.07582196,115570.0,115560.0,1.0]
[1758127668768,1.34626196,115570.0,115560.0,1.02371]
[1758127668975,1.75836513,115570.0,115560.0,1.02371]
[1758127669147,1.78172513,115570.0,115560.0,1.0]
[1758127670149,1.75836513,115570.0,115560.0,1.0]
[1758127670575,1.78172513,115570.0,115560.0,1.0]
[1758127670760,1.51128513,115570.0,115560.0,1.0]
[1758127670996,1.35486192,115570.0,115560.0,1.02371]
[1758127671150,1.76696509,115570.0,115560.0,1.02371]
[1758127671352,1.76696509,115570.0,115560.0,1.0]
[1758127671568,1.79032509,115570.0,115560.0,1.0]
[1758127671975,1.76696509,115570.0,115560.0,1.0]
[1758127672656,1.49652509,115570.0,115560.0,1.0]
[1758127672857,0.66723875,115570.0,115560.0,1.0]
[1758127673067,0.05328965,115570.0,115560.0,1.02371]
[1758127673271,0.26209068,115570.0,115560.0,2.0511385]
[1758127673474,0.0001,115580.0,115570.0,0.20320719]
[1758127673686,0.0001,115580.0,115570.0,0.66535733]
[1758127674093,0.07878,115580.0,115570.0,0.66535733]
[1758127674435,0.16298,115580.0,115570.0,0.8618899]
[1758127675267,0.16298,115580.0,115570.0,0.22924739]
[1758127675707,0.16298,115580.0,115570.0,0.61535733]
[1758127676305,0.16288,115580.0,115570.0,0.61545733]
[1758127676510,0.16488,115580.0,115570.0,0.61845733]
[1758127676837,0.16288,115580.0,115570.0,0.61545733]
[1758127677232,0.16488,115580.0,115570.0,0.61945733]
[1758127679116,0.27304,115580.0,115570.0,0.64115021]
[1758127679320,0.002,115580.0,115570.0,0.64115021]
[1758127679526,0.27304,115580.0,115570.0,0.64115021]
[1758127679670,0.273,115580.0,115570.0,0.64115021]
[1758127679879,0.002,115580.0,115570.0,0.64115021]
[1758127680090,0.12572,115580.0,115570.0,0.64115021]
[1758127680528,0.273,115580.0,115570.0,0.61945733]
[1758127681743,0.273,115580.0,115570.0,0.57350755]
[1758127682001,0.273,115580.0,115570.0,0.57307219]
[1758127686729,0.44604031,115580.0,115570.0,0.00414697]
[1758127686939,0.8121937,115580.0,115570.0,0.17720226]
[1758127687127,0.89746337,115580.0,115570.0,0.00414697]
[1758127687256,1.32273304,115580.0,115570.0,0.00414697]
[1758127687505,1.34873427,115580.0,115570.0,0.00414697]
[1758127687736,1.34883427,115580.0,115570.0,0.00414697]
[1758127688391,0.98268088,115580.0,115570.0,0.00414697]
[1758127689023,1.34883427,115580.0,115570.0,0.00414697]
[1758127689684,0.98268088,115580.0,115570.0,0.00414697]
[1758127689944,1.34883427,115580.0,115570.0,0.00414697]
[1758127692622,0.98268088,115580.0,115570.0,0.00414697]
[1758127693478,0.98268088,115580.0,115570.0,0.17720226]
[1758127694107,0.89741121,115580.0,115570.0,0.17720226]
[1758127696337,0.7243709,115580.0,115570.0,0.17720226]
[1758127696558,0.4533709,115580.0,115570.0,0.17720226]
[1758127697003,0.89717121,115580.0,115570.0,0.17720226]
[1758127697191,0.7241309,115580.0,115570.0,0.17720226]
[1758127697408,0.89717121,115580.0,115570.0,0.17720226]
[1758127697886,0.4533709,115580.0,115570.0,0.17720226]
[1758127698097,0.61286,115580.0,115570.0,0.54335565]
[1758127698310,0.3421,115580.0,115570.0,0.54335565]
[1758127698491,0.0021,115580.0,115570.0,0.57350755]
[1758127698709,0.2729,115580.0,115570.0,0.57350755]
[1758127700326,0.2729,115580.0,115570.0,0.20735416]
[1758127700509,0.2729,115580.0,115570.0,0.57350755]
[1758127700800,0.2729,115580.0,115570.0,0.20735416]
[1758127701043,0.2729,115580.0,115570.0,0.57350755]
[1758127701862,0.0021,115580.0,115570.0,0.57350755]
[1758127702086,0.27286,115580.0,115570.0,0.59902671]
[1758127702300,0.0021,115580.0,115570.0,0.59902671]
[1758127702550,0.27286,115580.0,115570.0,0.5821268]
[1758127703187,0.27286,115580.0,115570.0,0.57350755]
[1758127703761,0.27276,115580.0,115570.0,0.57350755]
[1758127703968,0.002,115580.0,115570.0,0.65877722]
[1758127704168,0.002,115580.0,115570.0,1.50020028]
[1758127704169,1e-08,115580.0,115570.0,1.50020028]
[1758127704418,0.07104001,115590.0,115580.0,0.20319221]
[1758127704637,0.15988001,115590.0,115580.0,1.02076866]
[1758127704848,0.15988001,115590.0,115580.0,0.65461527]
[1758127704981,1e-08,115590.0,115580.0,0.65461527]
[1758127705224,0.09500001,115590.0,115580.0,0.73988494]
[1758127705417,1e-08,115590.0,115580.0,0.73988494]
[1758127705622,0.18866,115600.0,115590.0,0.17302534]
[1758127705847,0.18866,115600.0,115590.0,0.6244484]
[1758127706047,0.18866,115600.0,115590.0,1.0244484]
[1758127706254,0.18866,115600.0,115590.0,1.09419391]
[1758127706581,0.18856,115600.0,115590.0,1.09419391]
[1758127706930,0.18956,115600.0,115590.0,1.09719391]
[1758127707346,0.18956,115600.0,115590.0,1.12734581]
[1758127708574,0.0001,115620.0,115610.0,0.17299541]
[1758127708783,0.0001,115620.0,115610.0,0.69218479]
[1758127708978,0.27086,115630.0,115620.0,0.17298045]
[1758127709183,0.27086,115630.0,115620.0,0.53913384]
[1758127709866,0.27086,115630.0,115620.0,0.20317932]
[1758127710389,0.28693169,115630.0,115620.0,0.20317932]
[1758127710593,0.65308508,115630.0,115620.0,0.20317932]
[1758127711166,0.65308508,115630.0,115620.0,0.20327932]
[1758127711808,0.73935475,115630.0,115620.0,0.17412742]
[1758127712079,0.28793169,115630.0,115620.0,0.17412742]
[1758127712287,0.65408508,115630.0,115620.0,0.17412742]
[1758127712507,0.28793169,115630.0,115620.0,0.17412742]
[1758127712740,0.65408508,115630.0,115620.0,0.17412742]
[1758127715407,0.65408508,115630.0,115620.0,0.20427932]
[1758127716511,0.28793169,115630.0,115620.0,0.20427932]
[1758127716955,0.65408508,115630.0,115620.0,0.20427932]
[1758127719495,0.65408508,115630.0,115620.0,0.17412742]
[1758127719929,0.65408508,115630.0,115620.0,0.00114697]
[1758127719930,0.82705057,115630.0,115620.0,0.00114697]
[1758127720192,0.65408508,115630.0,115620.0,0.17412742]
[1758127722861,0.28773169,115630.0,115620.0,0.17412742]
[1758127723071,0.28773169,115630.0,115620.0,0.2088497]
[1758127723516,0.28773169,115630.0,115620.0,0.20427932]
[1758127724366,0.28772546,115630.0,115620.0,0.20427932]
[1758127724580,0.01716546,115630.0,115620.0,0.20427932]
[1758127724802,0.01716546,115630.0,115620.0,0.57043271]
[1758127725015,0.28776546,115630.0,115620.0,0.57912549]
[1758127725237,0.28776546,115630.0,115620.0,0.65434758]
[1758127725452,0.01716546,115630.0,115620.0,0.65434758]